fUSD/lending_fUSD_20240404
["ID","MTS","AMOUNT","RATE_DAILY","PERIOD"]
[321498884,1712245839715,-1791.14,0.00047397,120]
[321498885,1712245839724,-1791.14,0.00047397,120]
[321498886,1712245839734,-1791.14,0.00047397,120]
[321498887,1712245839743,-1791.14,0.00047397,120]
[321498888,1712245839754,-1791.14,0.00047397,120]
[321498889,1712245839763,-1791.14,0.00047397,120]
[321498890,1712245839773,-1791.14,0.00047397,120]
[321498891,1712245839782,-1791.14,0.00047397,120]
[321498892,1712245839791,-1791.14,0.00047397,120]
[321498893,1712245839800,-1791.14,0.00047397,120]
[321498894,1712245839810,-1791.14,0.00047397,120]
[321498895,1712245839820,-1791.14,0.00047397,120]
[321498896,1712245839830,-1791.14,0.00047397,120]
[321498897,1712245839841,-1791.14,0.00047397,120]
[321498898,1712245839852,-1791.14,0.00047397,120]
[321498899,1712245839863,-1791.14,0.00047397,120]
[321498900,1712245839873,-1791.14,0.00047397,120]
[321498901,1712245839884,-1791.14,0.00047397,120]
[321498902,1712245839894,-1791.21201462,0.00047397,120]
[321498903,1712245839905,-150.0,0.00047479,7]
[321498904,1712245839915,-1000.0,0.000475,30]
[321498905,1712245839927,-150.0,0.000475,9]
[321498906,1712245839937,-165.1707281,0.00047534,60]
[321498907,1712245839949,-1005.64,0.0004756,2]
[321498908,1712245839958,-150.0,0.00047646,7]
[321498909,1712245839968,-150.0,0.00047709,7]
[321498911,1712245839977,-150.0,0.00047773,7]
[321498913,1712245839987,-151.02,0.00047809,2]
[321498914,1712245839996,-151.02,0.00047809,2]
[321498915,1712245840007,-529.66,0.00047809,2]
[321498916,1712245840016,-529.66,0.0004781,2]
[321498917,1712245840026,-3583.79938324,0.00047816,2]
[321498919,1712245840035,-1000.0,0.00047819,2]
[321498920,1712245840044,-500.0,0.00047819,2]
[321498921,1712245840054,-245000.0,0.00047819,2]
[321498922,1712245840063,-10788.47478001,0.0004782,2]
[321498923,1712245840073,-186.16909708,0.0004782,23]
[321498924,1712245840083,-153.34186357,0.00047822,36]
[321498926,1712245840092,-150.0,0.00047824,7]
[321498928,1712245840101,-857.96055821,0.00047845,23]
[321498930,1712245840111,-161.95937467,0.00047846,30]
[321498932,1712245840120,-167.67117976,0.00047863,60]
[321498934,1712245840129,-167.67117976,0.00047863,60]
[321498936,1712245840138,-165.1707281,0.00047863,60]
[321498938,1712245840148,-170.16853491,0.00047863,60]
[321498940,1712245840157,-150.0,0.00047864,7]
[321498942,1712245840167,-150.0,0.00047894,7]
[321498944,1712245840177,-150.0,0.00047898,7]
[321498947,1712245840187,-25000.0,0.000479,2]
[321498949,1712245840197,-151.02,0.0004791,2]
[321498950,1712245840206,-155.0,0.00047919,4]
[321498951,1712245840216,-71617.49027971,0.00047919,4]
[321498952,1712245840225,-68005.03385278,0.0004792,2]
[321498953,1712245840234,-2121.426633,0.00047922,30]
[321498954,1712245840244,-173.974287,0.00047922,30]
[321498955,1712245840254,-189.82392473,0.00047924,30]
[321498956,1712245840264,-150.0,0.00047934,7]
[321498957,1712245840273,-529.66,0.00047935,2]
[321498958,1712245840283,-150.29607954,0.0004794,30]
[321498959,1712245840293,-5985.45,0.00047945,8]
[321498960,1712245840302,-5985.45,0.00047945,8]
[321498961,1712245840312,-5985.45,0.00047945,8]
[321498962,1712245840322,-5985.45,0.00047945,8]
[321498963,1712245840332,-5985.45,0.00047945,8]
[321498964,1712245840341,-5985.45,0.00047945,8]
[321498965,1712245840352,-5555.9,0.00047945,8]
[321498966,1712245840363,-5555.9,0.00047945,8]
[321498967,1712245840373,-5555.9,0.00047945,8]
[321498968,1712245840384,-5555.9,0.00047945,8]
[321498969,1712245840395,-282.3,0.00047945,2]
[321498970,1712245840408,-150.0,0.00047951,7]
[321498971,1712245840419,-152.19027502,0.00047953,30]
[321498972,1712245840430,-189.82392473,0.00047953,30]
[321498973,1712245840442,-272.26728138,0.0004796,30]
[321498974,1712245840453,-150.0,0.00047963,7]
[321498975,1712245840464,-2612.24122289,0.00047979,39]
[321498976,1712245840475,-151.02,0.0004799,2]
[321498977,1712245840485,-529.66,0.0004799,2]
[321498978,1712245840496,-5985.45,0.00047999,8]
[321498979,1712245840509,-5555.9,0.00047999,8]
[321498980,1712245840519,-200000.0,0.00048,48]
[321498981,1712245840528,-8622.84027666,0.00048,7]
[321498982,1712245840538,-500.0,0.00048,30]
[321498983,1712245840549,-151.0,0.00048,120]
[321498984,1712245840560,-301.0,0.00048,10]
[321498985,1712245840571,-333.49,0.00048,120]
[321498986,1712245840581,-574.54,0.00048,30]
[321498987,1712245840593,-574.54,0.00048,120]
[321498988,1712245840603,-574.54,0.00048,30]
[321498989,1712245840613,-574.54,0.00048,30]
[321498990,1712245840623,-392.369205,0.00048,25]
[321498991,1712245840633,-392.369205,0.00048,25]
[321498992,1712245840643,-150.0,0.00048,9]
[321498993,1712245840654,-2110.0,0.00048,15]
[321498994,1712245840664,-150.0,0.00048002,7]
[321498995,1712245840674,-150.0,0.00048004,7]
[321498996,1712245840684,-150.0,0.00048014,7]
[321498997,1712245840694,-150.0,0.0004804,7]
[321498998,1712245840703,-150.0,0.00048047,2]
[321498999,1712245840712,-150.0,0.00048054,7]
[321499000,1712245840721,-189.82392473,0.00048057,30]
[321499001,1712245840731,-150.5109859,0.00048068,30]
[321499002,1712245840741,-1129.58171562,0.00048095,2]
[321499003,1712245840754,-751.84774407,0.00048095,2]
[321499004,1712245840764,-155.1863282,0.00048105,30]
[321499005,1712245840774,-150.0,0.0004811,7]
[321499006,1712245840786,-857.96055819,0.00048123,24]
[321499007,1712245840796,-152.13,0.00048175,2]
[321499008,1712245840806,-150.0,0.00048181,7]
[321499009,1712245840817,-150.0,0.00048182,7]
[321499010,1712245840827,-150.0,0.00048191,7]
[321499011,1712245840836,-150.0,0.00048215,7]
[321499012,1712245840846,-6668.69629923,0.00048219,7]
[321499013,1712245840856,-165.1707281,0.00048219,60]
[321499014,1712245840866,-150.0,0.0004823,7]
[321499015,1712245840877,-150.0,0.00048244,7]
[321499016,1712245840888,-152.0,0.00048273,10]
[321499017,1712245840897,-196.51433169,0.000483,24]
[321499018,1712245840906,-272.26728138,0.00048308,30]
[321499019,1712245840916,-150.0,0.00048308,7]
[321499020,1712245840926,-161.95937467,0.00048344,30]
[321499021,1712245840935,-150.0,0.00048368,7]
[321499022,1712245840944,-13633.53,0.0004838,30]
[321499023,1712245840954,-151.02,0.00048384,120]
[321499024,1712245840963,-150.0,0.0004839,7]
[321499025,1712245840972,-529.66,0.0004839,2]
[321499026,1712245840981,-2511.14268765,0.00048393,4]
[321499027,1712245840990,-11425.99915394,0.00048393,4]
[321499028,1712245841001,-300.6784826,0.00048393,4]
[321499029,1712245841011,-155.16420503,0.00048393,4]
[321499030,1712245841020,-155.0,0.00048393,4]
[321499031,1712245841029,-486.10436711,0.00048393,4]
[321499032,1712245841038,-269.92509742,0.00048394,4]
[321499033,1712245841048,-1991.66205487,0.00048394,4]
[321499034,1712245841058,-156.56179884,0.00048394,4]
[321499035,1712245841067,-32167.02178988,0.00048394,4]
[321499036,1712245841077,-200.0,0.00048395,2]
[321499037,1712245841086,-3353.30355716,0.00048395,4]
[321499038,1712245841095,-13022.71998719,0.00048395,5]
[321499039,1712245841105,-170.29193997,0.00048395,7]
[321499040,1712245841114,-653.27182698,0.00048395,30]
[321499041,1712245841124,-2000.0,0.00048395,7]
[321499042,1712245841133,-200.0,0.00048395,7]
[321499043,1712245841143,-2000.0,0.00048395,7]
[321499044,1712245841152,-2000.0,0.00048395,7]
[321499045,1712245841162,-200.0,0.00048395,7]
[321499046,1712245841171,-5985.45,0.000484,8]
[321499047,1712245841181,-5985.45,0.000484,8]
[321499048,1712245841190,-5985.45,0.000484,8]
[321499049,1712245841200,-5985.45,0.000484,8]
[321499050,1712245841209,-5985.45,0.000484,8]
[321499051,1712245841218,-5985.45,0.000484,8]
[321499052,1712245841228,-5985.45,0.000484,8]
[321499053,1712245841237,-5985.45,0.000484,8]
[321499054,1712245841247,-5985.45,0.000484,8]
[321499055,1712245841259,-5985.45,0.000484,8]
[321499056,1712245841268,-5985.45,0.000484,8]
[321499057,1712245841277,-5985.45,0.000484,8]
[321499058,1712245841288,-857.96055819,0.000484,24]
[321499059,1712245841298,-150.0,0.00048406,7]
[321499060,1712245841307,-150.0,0.00048425,7]
[321499061,1712245841317,-1005.64,0.0004843,2]
[321499062,1712245841326,-150.0,0.00048443,7]
[321499063,1712245841336,-150.0,0.00048445,7]
[321499064,1712245841345,-273.50867602,0.00048466,60]
[321499065,1712245841355,-180.15795551,0.00048466,60]
[321499066,1712245841364,-217.01808747,0.00048466,60]
[321499067,1712245841374,-1000.0,0.00048466,7]
[321499068,1712245841383,-1000.0,0.00048466,7]
[321499069,1712245841392,-1000.0,0.00048466,7]
[321499070,1712245841402,-1000.0,0.00048466,7]
[321499071,1712245841411,-1000.0,0.00048466,7]
[321499072,1712245841423,-1000.0,0.00048466,7]
[321499073,1712245841435,-1000.0,0.00048466,7]
[321499074,1712245841445,-1000.0,0.00048466,7]
[321499075,1712245841456,-506.0,0.00048466,7]
[321499076,1712245841466,-150.0,0.00048467,7]
[321499077,1712245841476,-1000.0,0.00048472,2]
[321499078,1712245841486,-150.0,0.00048472,7]
[321499079,1712245841496,-320.020875,0.00048499,30]
[321499080,1712245841509,-400.026094,0.00048499,30]
[321499081,1712245841518,-2121.426633,0.00048499,30]
[321499082,1712245841529,-173.974287,0.00048499,30]
[321499083,1712245841538,-200.013048,0.00048499,30]
[321499084,1712245841548,-160.010437,0.00048499,30]
[321499085,1712245841558,-200.013047,0.00048499,30]
[321499086,1712245841567,-160.010438,0.00048499,30]
[321499087,1712245841576,-175.56,0.000485,7]
[321499088,1712245841586,-341.69,0.000485,7]
[321499089,1712245841596,-150.0,0.000485,9]
[321499090,1712245841605,-2110.0,0.000485,15]
[321499091,1712245841615,-2033894.88087058,0.00048509,19]
[321499092,1712245842207,-7285.4117779,0.00048509,19]
[321499095,1712245842862,-150.0,0.00046731,7]
[321499096,1712245842872,-150.0,0.00047141,7]
[321499097,1712245842881,-150.0,0.00047207,7]
[321499098,1712245842890,-150.0,0.00047663,7]
[321499099,1712245842899,-150.0,0.00047729,7]
[321499100,1712245842908,-150.0,0.00048074,7]
[321499101,1712245842917,-150.0,0.00048202,7]
[321499102,1712245842926,-2344.83314071,0.00048509,19]
[321499108,1712245843048,-150.0,0.00047652,7]
[321499110,1712245843057,-600.20000008,0.00048509,19]
[321499125,1712245844092,-1.24809349,0.00046436,2]
[321499126,1712245844181,-148.75190651,0.00046436,2]
[321499127,1712245844190,-150.0,0.00046437,2]
[321499128,1712245844200,-150.0,0.00046487,2]
[321499129,1712245844209,-150.0,0.00046508,2]
[321499130,1712245844219,-150.0,0.0004654,2]
[321499131,1712245844228,-150.0,0.00047069,7]
[321499132,1712245844237,-150.0,0.00047113,7]
[321499133,1712245844246,-150.0,0.00047139,7]
[321499134,1712245844256,-150.0,0.00047279,7]
[321499135,1712245844266,-150.0,0.00047319,7]
[321499136,1712245844275,-150.0,0.00047443,7]
[321499137,1712245844285,-150.0,0.00047581,7]
[321499138,1712245844294,-150.0,0.00047583,7]
[321499139,1712245844303,-150.0,0.00047677,7]
[321499140,1712245844312,-150.0,0.0004807,7]
[321499141,1712245844321,-150.0,0.0004815,7]
[321499142,1712245844331,-150.0,0.00048216,7]
[321499143,1712245844339,-150.0,0.00048345,7]
[321499144,1712245844348,-150.0,0.0004836,7]
[321499145,1712245844358,-150.0,0.00048473,7]
[321499146,1712245844367,-82788.59952025,0.00048509,19]
[321499170,1712245876068,159310.92388004,0.0001575,2]
[321499176,1712245944324,240.4236211,0.0001575,2]
[321499177,1712245945239,291.74027277,0.0001575,2]
[321499178,1712245945501,397.25888931,0.0001575,2]
[321499179,1712245956666,42470.12951744,0.0001575,2]
[321499180,1712245966022,18355.88991775,0.0001575,2]
[321499181,1712245968639,16232.34138005,0.0001575,2]
[321499182,1712245978646,514.47964884,0.00022128,2]
[321499183,1712245982020,14480.6242935,0.0001575,2]
[321499184,1712245985085,294.0,0.0002499,15]
[321499185,1712245991373,3789.60249615,0.0001575,2]
[321499186,1712245995204,1131.74605712,0.0001575,2]
[321499187,1712246011155,513.376769,0.0001575,2]
[321499188,1712246033045,-155.0,0.00023111,2]
[321499189,1712246033067,-277.70914053,0.00023112,2]
[321499190,1712246033088,-8876.86331766,0.00024587,2]
[321499191,1712246033109,-350.76102204,0.00024588,2]
[321499192,1712246033129,-4228.08751554,0.00024588,2]
[321499193,1712246033150,-6111.57900423,0.00024589,2]
[321499194,1712246035333,-20000.0,0.00024589,2]
[321499195,1712246036644,3213.36133773,0.0001575,2]
[321499197,1712246037102,-20000.0,0.00024589,2]
[321499198,1712246038653,-20000.0,0.00024589,2]
[321499199,1712246040125,-5505.91127548,0.00024589,2]
[321499200,1712246040147,-14494.08872452,0.0002459,3]
[321499202,1712246041849,-20000.0,0.0002459,3]
[321499204,1712246067021,1817.25596663,0.00012,30]
[321499206,1712246077805,115489.75499496,0.00015,2]
[321499228,1712246298440,414.97389678,0.00012,2]
[321499231,1712246336194,790.2794,0.00022896,2]
[321499232,1712246361225,289.84133199,0.00012,2]
[321499233,1712246367490,11415.74160047,0.00022896,2]
[321499234,1712246369243,1767.21417569,0.00022896,2]
[321499235,1712246369298,20100.79242508,0.00022896,2]
[321499236,1712246372372,489.43334624,0.00012,2]
[321499237,1712246376546,477.69324998,0.00022896,2]
[321499238,1712246378125,7607.36167299,0.00022909,2]
[321499239,1712246390178,2533.30328513,0.00022896,2]
[321499240,1712246392494,2144.58,0.00021918,2]
[321499241,1712246392702,285.813,0.00022896,2]
[321499242,1712246402482,348.9256264,0.00022896,2]
[321499243,1712246460819,155.0,0.00023001,2]
[321499244,1712246463765,150.5,0.0002499,15]
[321499245,1712246464230,150.5,0.0002498,15]
[321499246,1712246464771,150.5,0.0002497,15]
[321499249,1712246481382,1042.1693544,0.00023001,2]
[321499250,1712246482213,236.90780662,0.00023001,2]
[321499251,1712246484728,500.0,0.00023001,2]
[321499252,1712246488951,268.90072701,0.00023001,2]
[321499253,1712246493818,1209.98040497,0.00023001,2]
[321499254,1712246511544,8979.5067146,0.00023001,2]
[321499255,1712246529784,168.74,0.00018995,2]
[321499256,1712246536928,170.33890985,0.00022909,2]
[321499257,1712246726338,611.787716,0.00022889,2]
[321499259,1712246752765,500.0,0.00023001,2]
[321499260,1712246756784,536.20593536,0.00023001,2]
[321499263,1712246816998,171.89,0.00016712,2]
[321499265,1712246839280,500.0,0.00023001,2]
[321499266,1712246844306,536.20593536,0.00023001,2]
[321499268,1712246858771,215.32689164,0.00023001,2]
[321499271,1712246930565,215.32689164,0.00023001,2]
[321499272,1712246944309,-1042.1693544,0.00023002,2]
[321499273,1712246944330,-500.0,0.00023003,2]
[321499274,1712246944350,-457.8306456,0.00023006,2]
[321499275,1712246944907,278.15686245,0.00023001,2]
[321499276,1712246944986,-77.1839414,0.00023006,2]
[321499277,1712246945008,-150.0,0.00023007,2]
[321499278,1712246945031,-150.0,0.00023007,2]
[321499279,1712246945053,-1622.8160586,0.00023008,2]
[321499280,1712246945607,-2000.0,0.00023008,2]
[321499281,1712246946122,-2000.0,0.00023008,2]
[321499282,1712246946690,-2000.0,0.00023008,2]
[321499283,1712246947234,-2000.0,0.00023008,2]
[321499284,1712246947849,-2000.0,0.00023008,2]
[321499285,1712246948423,-2000.0,0.00023008,2]
[321499286,1712246948992,-2000.0,0.00023008,2]
[321499287,1712246949620,-2000.0,0.00023008,2]
[321499288,1712246950772,-1818.77578976,0.00023008,2]
[321499289,1712246969488,181.22421024,0.00023008,2]
[321499290,1712246969508,341.0870162,0.00023008,2]
[321499291,1712246978375,778.88911183,0.00023008,2]
[321499292,1712246986459,880.02387197,0.00021198,2]
[321499293,1712246986482,1228.04612803,0.00021198,2]
[321499294,1712247001539,452.96604982,0.00023008,2]
[321499295,1712247002297,150.0,0.00023008,2]
[321499296,1712247002753,150.0,0.00023008,2]
[321499297,1712247002946,18.98782215,0.00023008,2]
[321499298,1712247002969,131.01217785,0.00023008,2]
[321499299,1712247003149,150.0,0.00023008,2]
[321499300,1712247003330,150.0,0.00023008,2]
[321499301,1712247003526,150.0,0.00023008,2]
[321499302,1712247003717,150.0,0.00023008,2]
[321499303,1712247003940,150.0,0.00023008,2]
[321499304,1712247004067,150.0,0.00023008,2]
[321499305,1712247004583,150.0,0.00023008,2]
[321499306,1712247004660,150.0,0.00023008,2]
[321499307,1712247004718,150.0,0.00023008,2]
[321499308,1712247004795,150.0,0.00023008,2]
[321499309,1712247004994,150.0,0.00023008,2]
[321499310,1712247005786,150.0,0.00023008,2]
[321499311,1712247005840,68.98782215,0.00023008,2]
[321499312,1712247005863,81.01217785,0.00023008,2]
[321499313,1712247005936,150.0,0.00023008,2]
[321499314,1712247005990,150.0,0.00023008,2]
[321499315,1712247006062,150.0,0.00023008,2]
[321499316,1712247006187,150.0,0.00023008,2]
[321499317,1712247006329,150.0,0.00023008,2]
[321499318,1712247006496,150.0,0.00023008,2]
[321499319,1712247006694,150.0,0.00023008,2]
[321499320,1712247006873,150.0,0.00023008,2]
[321499321,1712247007149,150.0,0.00023008,2]
[321499322,1712247007256,150.0,0.00023008,2]
[321499323,1712247007457,150.0,0.00023008,2]
[321499324,1712247007622,150.0,0.00023008,2]
[321499325,1712247007833,118.98782215,0.00023008,2]
[321499326,1712247007858,31.01217785,0.00023008,2]
[321499327,1712247008033,150.0,0.00023008,2]
[321499328,1712247008238,150.0,0.00023008,2]
[321499329,1712247008413,186.6273164,0.00023008,2]
[321499330,1712247026377,500.0,0.00023008,2]
[321499353,1712247031781,-431.61086898,0.00023009,2]
[321499375,1712247032386,-626.37560787,0.00023009,2]
[321499376,1712247032396,-452.69,0.00023059,2]
[321499377,1712247032407,-450.43164634,0.00023113,2]
[321499378,1712247032419,-11919.95,0.00023119,2]
[321499379,1712247032430,-600.0,0.00023119,2]
[321499380,1712247032441,-1203.75,0.00023119,2]
[321499381,1712247032451,-160.04,0.00023183,2]
[321499382,1712247032462,-1715.49,0.00023183,2]
[321499383,1712247032472,-1308.58983327,0.00023264,2]
[321499384,1712247032484,-786.18,0.00023325,2]
[321499385,1712247032494,-221.81819831,0.00023336,2]
[321499386,1712247032504,-7461.68471421,0.00023337,2]
[321499387,1712247032529,-1381.55000003,0.00023337,2]
[321499397,1712247039240,-19441.59184836,0.00023118,2]
[321499398,1712247039250,-15056.76528576,0.00023337,2]
[321499399,1712247039260,-2336.98,0.00023354,2]
[321499400,1712247039271,-1412.36296071,0.00023359,2]
[321499401,1712247039280,-2108.07,0.00023462,2]
[321499402,1712247039289,-500.0,0.00023463,2]
[321499403,1712247039299,-8112.53,0.0002348,2]
[321499404,1712247039309,-200.0,0.0002353,2]
[321499405,1712247039319,-209.19,0.00023557,2]
[321499406,1712247039330,-166.68,0.00023696,2]
[321499407,1712247039340,-4528.11,0.00023719,2]
[321499408,1712247039350,-400.0,0.00023721,2]
[321499409,1712247039361,-167.12,0.00023776,2]
[321499410,1712247039372,-154.51,0.00023922,2]
[321499411,1712247039381,-154.51,0.00024047,2]
[321499412,1712247039390,-154.51,0.00024172,2]
[321499413,1712247039399,-154.51,0.00024296,2]
[321499414,1712247039408,-299.65527006,0.00024342,2]
[321499415,1712247039417,-150.99,0.00024342,2]
[321499416,1712247039427,-12979.17145962,0.000244,2]
[321499417,1712247039436,-154.51,0.00024421,2]
[321499418,1712247039445,-221.30515385,0.00024488,2]
[321499420,1712247039454,-156.81951421,0.00024488,2]
[321499422,1712247039463,-343.29394278,0.00024488,2]
[321499424,1712247039472,-3369.98331049,0.00024488,2]
[321499427,1712247039491,-782.23166776,0.00024488,2]
[321499428,1712247039501,-216.63026014,0.00024488,2]
[321499430,1712247039510,-374.42826766,0.00024488,2]
[321499433,1712247039522,-465.7874348,0.00024488,2]
[321499435,1712247039531,-1358.02,0.00024488,2]
[321499437,1712247039540,-521.68399498,0.00024488,2]
[321499438,1712247039550,-426.7792184,0.00024488,2]
[321499440,1712247039559,-325.7634,0.0002449,2]
[321499443,1712247039568,-29227.8054,0.0002449,2]
[321499446,1712247039578,-392.1619,0.0002449,2]
[321499449,1712247039587,-4597.18376488,0.000245,2]
[321499452,1712247039596,-154.51,0.00024546,2]
[321499454,1712247039605,-733.94,0.0002458,3]
[321499457,1712247039615,-835.03,0.0002458,2]
[321499460,1712247039624,-808.30329148,0.00024588,2]
[321499464,1712247039634,-4710.43501959,0.00024588,2]
[321499468,1712247039643,-4343.8781001,0.00024588,2]
[321499472,1712247039652,-155.50479854,0.00024588,2]
[321499476,1712247039661,-203.44790937,0.00024588,2]
[321499479,1712247039671,-292.69331723,0.00024588,2]
[321499482,1712247039680,-644.94085111,0.00024588,2]
[321499485,1712247039690,-485.70839377,0.00024588,2]
[321499489,1712247039699,-157.82685606,0.00024589,2]
[321499492,1712247039708,-2549.13583628,0.00024589,2]
[321499495,1712247039717,-115615.93487935,0.0002459,3]
[321499498,1712247039727,-200.0,0.000246,8]
[321499501,1712247039736,-154.51,0.0002467,2]
[321499503,1712247039745,-500.0,0.000247,9]
[321499506,1712247039754,-154.51,0.00024795,2]
[321499508,1712247039764,-800.0,0.000248,9]
[321499510,1712247039774,-157.64831993,0.000249,2]
[321499512,1712247039784,-196.5143317,0.000249,2]
[321499514,1712247039798,-204.87394773,0.000249,2]
[321499516,1712247039807,-7500.0,0.000249,2]
[321499518,1712247039818,-184.84070757,0.000249,2]
[321499520,1712247039829,-192.11652936,0.000249,2]
[321499522,1712247039838,-5162.00663988,0.000249,2]
[321499524,1712247039847,-1100.0,0.000249,9]
[321499526,1712247039856,-153.63821536,0.000249,2]
[321499528,1712247039867,-528.29725407,0.000249,2]
[321499530,1712247039875,-203.39500973,0.000249,4]
[321499532,1712247039885,-153.28274491,0.000249,2]
[321499534,1712247039895,-170.97010711,0.000249,2]
[321499536,1712247039904,-10788.47478001,0.000249,2]
[321499538,1712247039913,-154.51,0.0002492,2]
[321499540,1712247039922,-800.0,0.00024959,2]
[321499542,1712247039931,-454.58,0.00024959,2]
[321499544,1712247039940,-681.48761763,0.0002499,2]
[321499546,1712247039951,-681.48761763,0.0002499,2]
[321499548,1712247039961,-681.48761763,0.0002499,2]
[321499550,1712247039970,-835.03,0.0002499,2]
[321499552,1712247039979,-835.03,0.0002499,2]
[321499554,1712247039988,-835.03,0.0002499,2]
[321499556,1712247039997,-835.03,0.0002499,2]
[321499558,1712247040007,-835.03,0.0002499,2]
[321499560,1712247040017,-835.03,0.0002499,2]
[321499562,1712247040026,-835.03,0.0002499,2]
[321499564,1712247040034,-835.03,0.0002499,2]
[321499566,1712247040043,-835.03,0.0002499,2]
[321499567,1712247040052,-269.92509742,0.00024998,2]
[321499568,1712247040062,-156.56179884,0.00024998,2]
[321499569,1712247040071,-300.6784826,0.00024998,2]
[321499570,1712247040081,-155.16420503,0.00024998,2]
[321499572,1712247040090,-2511.14268765,0.00024998,2]
[321499574,1712247040099,-155.0,0.00024998,2]
[321499576,1712247040108,-155.0,0.00024998,2]
[321499578,1712247040117,-500.0,0.00024999,2]
[321499580,1712247040126,-500.0,0.00024999,2]
[321499582,1712247040135,-499.52811515,0.00024999,2]
[321499584,1712247040144,-393.28963829,0.00024999,2]
[321499586,1712247040153,-261.67586936,0.00025,2]
[321499588,1712247040162,-166.68,0.00025,2]
[321499590,1712247040171,-494172.10929278,0.00025,2]
[321499593,1712247040185,-17332.55374492,0.00025,2]
[321499600,1712247040219,-2505107.97593447,0.00025,2]
[321499603,1712247040228,-155.0,0.00025,2]
[321499606,1712247040238,-286.38407441,0.00025,2]
[321499609,1712247040248,-2601.01958159,0.00025,2]
[321499612,1712247040257,-187.75884954,0.00025,2]
[321499615,1712247040268,-705.4,0.00025,2]
[321499619,1712247040278,-796.12,0.00025,2]
[321499621,1712247040287,-604.63,0.00025,2]
[321499623,1712247040296,-154.51,0.00025044,2]
[321499625,1712247040304,-154.51,0.00025169,2]
[321499627,1712247040314,-210.0,0.00025308,2]
[321499631,1712247040324,-150.63,0.00025658,2]
[321499633,1712247040333,-2108.07,0.00025726,2]
[321499636,1712247040342,-11919.95,0.00025858,2]
[321499641,1712247040352,-600.0,0.00026009,2]
[321499644,1712247040361,-167.12,0.00026154,2]
[321499645,1712247040370,-166.68,0.00026303,2]
[321499648,1712247040380,-400.0,0.00026686,2]
[321499650,1712247040388,-150.63,0.00026747,2]
[321499652,1712247040398,-154.94,0.00026883,2]
[321499654,1712247040407,-155.0,0.00027,2]
[321499656,1712247040416,-155.76223834,0.00027,2]
[321499659,1712247040426,-154.94,0.00027017,2]
[321499661,1712247040435,-5162.0066398,0.00027164,2]
[321499662,1712247040444,-12979.17145954,0.00027167,2]
[321499664,1712247040453,-4597.1837648,0.00027256,2]
[321499666,1712247040463,-417.98042323,0.00027397,2]
[321499668,1712247040472,-250.0,0.00027397,2]
[321499670,1712247040483,-15745.05,0.00027397,2]
[321499672,1712247040493,-166.68,0.00027607,2]
[321499674,1712247040503,-150.63,0.00027836,2]
[321499676,1712247040514,-2108.07,0.0002799,2]
[321499679,1712247040524,-204.87394768,0.00028314,4]
[321499681,1712247040534,-167.63,0.0002832,2]
[321499683,1712247040543,-167.12,0.00028532,2]
[321499685,1712247040552,-11919.95,0.00028598,2]
[321499687,1712247040562,-4005.0,0.00028689,3]
[321499689,1712247040571,-705.4,0.000287,2]
[321499691,1712247040581,-796.12,0.000287,2]
[321499693,1712247040590,-604.63,0.000288,2]
[321499695,1712247040601,-600.0,0.00028898,2]
[321499697,1712247040611,-150.63,0.00028925,2]